Cogmind - Beta 13 @@@ ROGUE MODE // 2024.04.24 @ 23:01:57 Player: Olafz Result: Destroyed by as-53791 with Assembled Rifle Performance ------------- Evolutions (0) 0 Regions Visited (3) 600 Robots Destroyed (14) 70 Value Destroyed (409) 409 Prototype IDs (0) 0 Alien Tech Used (0) 0 Bonus (0) 0 TOTAL SCORE: 1079 Bonus ------- None Cogmind --------- Core Integrity 0/250 Matter 275/300 Energy 108/125 System Corruption 9% Temperature Cool (20) Movement Rolling (130) Ox2 Location -10/Exiles Parts ------- > --- POWER (1) -------- Light Ion Engine > --- PROPULSION (2) --- Compact Wheel > --- UTILITY (2) ------ High-capacity Storage Unit > --- WEAPON (2) ------- (None) > --- INVENTORY (20) --- Light Ion Engine Light Ion Engine Light Treads Aluminum Leg Aluminum Leg Small Storage Unit Medium Storage Unit High-capacity Battery (250) Seismic Detector Peak State ------------ > --- POWER ------------ Light Ion Engine > --- PROPULSION ------- Light Treads Light Treads > --- UTILITY ---------- Medium Storage Unit High-capacity Storage Unit > --- WEAPON ----------- EM Pulse Gun Assault Rifle > --- INVENTORY -------- Light Ion Engine Light Ion Engine Light Treads Aluminum Leg Aluminum Leg Compact Wheel Compact Wheel Small Storage Unit Small Laser Assault Rifle [Rating: 8] Favorites ----------- Power Light Ion Engine Engine Light Ion Engine Propulsion Light Treads Treads Light Treads Leg Aluminum Leg Wheel Compact Wheel Utility High-capacity Storage Unit Device Seismic Detector Storage High-capacity Storage Unit Weapon Assault Rifle Energy Gun EM Pulse Gun Ballistic Gun Assault Rifle Build | -11 -10 -10 -10 ------- Run | Yrd Mat Min Exi Slots Evolved . | . . . . Power . | . . . . Propulsion . | . . . . Utility . | . . . . Weapon . | . . . . Parts Attached 24 | . 10 10 4 Power 4 | . . 2 2 Engine 4 | . . 2 2 Core . | . . . . Reactor . | . . . . Propulsion 7 | . 3 2 2 Treads 4 | . 2 2 . Leg 1 | . 1 . . Wheel 2 | . . . 2 Hover . | . . . . Flight . | . . . . Utility 3 | . 3 . . Device 1 | . 1 . . Storage 2 | . 2 . . Processor . | . . . . Hackware . | . . . . Protection . | . . . . Artifact . | . . . . Weapon 10 | . 4 6 . Energy Gun 6 | . 3 3 . Energy Cannon . | . . . . Ballistic Gun 4 | . 1 3 . Ballistic Cannon . | . . . . Launcher . | . . . . Special Weapon . | . . . . Impact Weapon . | . . . . Slashing Weapon . | . . . . Piercing Weapon . | . . . . Special Melee Weapon . | . . . . Unidentified Prototypes . | . . . . Corrupted Parts 1 | . . 1 . System Corruption 6 | . . 6 . Parts Lost 14 | . 1 9 4 Power 2 | . . 1 1 Propulsion 4 | . . 2 2 Utility 1 | . . 1 . Weapon 7 | . 1 5 1 Highest Loss Streak 4 | . 1 4 4 To Critical Strikes 3 | . . 1 2 Average Slot Usage (%) 85 | . 84 89 67 Engine 14 | . 14 14 14 Treads 25 | . 22 28 24 Leg 2 | . 5 . . Device 3 | . 3 4 . Storage 14 | . 14 14 14 Energy Gun 16 | . 14 20 . Ballistic Gun 9 | . 10 7 12 Naked Turns . | . . . . Heaviest Build 48 | 11 48 48 45 Greatest Support 40 | 20 40 40 40 Greatest Overweight (x) 2 | . 1 1 2 Average Overweight (x) . | . . 1 1 Largest Inventory Capacity 20 | . 20 20 20 Average Capacity 17 | . 14 20 20 Most Carried 15 | . 15 15 11 Average Carried 11 | . 10 11 10 Final Capacity 20 | 8 20 20 20 Final Carried 15 | 6 15 11 9 Class Distribution -------------------- 100% | Mutant Dominant Class ---------------- Mutant | -10/Materials Mutant | -10/Mines Mutant | -10/Exiles Resources | -11 -10 -10 -10 ----------- Run | Yrd Mat Min Exi Matter Collected 499 | 200 163 136 . Remotely . | . . . . Salvage Created 668 | . 398 270 . Parts 29 | . 22 7 . Haulers Intercepted . | . . . . Recyclers Shooed 2 | . 1 1 . Parts Field Recycled . | . . . . Retrieved Matter . | . . . . Parts Self-Destructed . | . . . . Prevented . | . . . . Kills | -11 -10 -10 -10 ------- Run | Yrd Mat Min Exi Combat Hostiles Destroyed 16 | . 8 8 . Guns 15 | . 7 8 . AOE 1 | . 1 . . Classes Destroyed 6 | . 3 3 . Worker 1 | . 1 . . Recycler 1 | . . 1 . Operator 1 | . 1 . . Swarmer 1 | . . 1 . Grunt 10 | . 8 2 . Assembled 5 | . . 5 . Best Kill Streak 5 | . 2 5 . Combat Bots Only 5 | . 2 5 . Max Kills in Single Turn 2 | . 1 2 . Gunslinging 1 | . . 1 . Exploded 1 | . 1 . . Melee . | . . . . Uniques/NPCs Destroyed . | . . . . Combat | -11 -10 -10 -10 -------- Run | Yrd Mat Min Exi Hostile Shots Fired 130 | . 40 66 24 Missed 31 | . 10 15 6 Damage Taken 1447 | . 353 711 383 Core 262 | . 85 58 119 Absorbed by Shields . | . . . . Core Remaining (%) 100 | 100 . . . Volleys Fired 66 | . 33 33 . Largest 2 | . 2 2 . Hottest 105 | . 80 105 . Shots Fired 120 | . 60 59 1 Gun 120 | . 60 59 1 Cannon . | . . . . Launcher . | . . . . Special . | . . . . Kinetic 39 | . 24 14 1 Thermal 20 | . 2 18 . Explosive . | . . . . Electromagnetic 61 | . 34 27 . Robot Hit Streak 8 | . 7 8 2 Robot Miss Streak 4 | . 2 4 . Penetration Max . | . . . . Secondary Targets 4 | . 2 2 . Max Gunslinging Chain 1 | . 1 1 . Shots Hit Robots 79 | . 42 36 1 Core Hits 34 | . 17 17 . Critical Kills . | . . . . Critical Parts Destroyed . | . . . . Critical Strikes 1 | . 1 . . Corrupt 1 | . 1 . . Melee Attacks . | . . . . Impact . | . . . . Slashing . | . . . . Piercing . | . . . . Sneak Attacks . | . . . . Combat Hostiles . | . . . . Follow-up Attacks . | . . . . Damage Inflicted 1146 | . 583 550 13 Guns 1012 | . 542 457 13 Cannons . | . . . . Explosions 131 | . 39 92 . Melee . | . . . . Ramming 3 | . 2 1 . Kinetic 290 | . 190 87 13 Thermal 290 | . 60 230 . Explosive . | . . . . Electromagnetic 563 | . 331 232 . Impact . | . . . . Slashing . | . . . . Piercing . | . . . . Highest Corruption 9 | . . 9 9 Average Corruption 8 | . . 8 9 Corruption Purged . | . . . . Corruption Blocked . | . . . . Effects 17 | . . 14 3 Message Errors 4 | . . 3 1 Matter Fused 3 | . . 3 . Heat Flow Errors 3 | . . 2 1 Energy Discharges 1 | . . 1 . Data Loss (minor) 4 | . . 4 . Data Loss (major) 1 | . . 1 . Misfires 1 | . . . 1 Overload Shots . | . . . . Overflow Damage 18 | . . 18 . Projectiles . | . . . . Explosions 18 | . . 18 . Melee . | . . . . Knockbacks . | . . . . Impact . | . . . . Kinetic . | . . . . Secondary . | . . . . Self-Inflicted Damage 31 | . . 31 . Shots 1 | . . 1 . Rammed 2 | . 1 1 . Targets Rammed 2 | . 1 1 . Kicked . | . . . . Crushed . | . . . . Highest Temperature 225 | . 96 225 98 Average Temperature 69 | . 43 86 45 Received Heat Transfer 446 | . 195 171 80 Siege Activations . | . . . . Robots Corrupted . | . . . . Combat Hostiles . | . . . . Parts Fried 1 | . . 1 . Impact Corruptions . | . . . . Robots Melted . | . . . . Combat Hostiles . | . . . . Parts Melted . | . . . . Heat Transferred 512 | . 100 412 . Parts Sabotaged . | . . . . Parts Stolen . | . . . . Parts Stripped . | . . . . Power Chain Reactions 3 | . 1 2 . Alert | -11 -10 -10 -10 ------- Run | Yrd Mat Min Exi Peak Influence 261 | . 261 92 . Initial 23 | . . 23 . Average 70 | . 111 39 . Maximum Alert Level 1 | . 1 . . Low Security (%) 90 | . 77 100 . Level 1 9 | . 22 . . Level 2 . | . . . . Level 3 . | . . . . Level 4 . | . . . . Level 5 . | . . . . High Security . | . . . . Max Security . | . . . . Squads Dispatched 2 | . 2 . . Investigation 1 | . 1 . . Extermination . | . . . . Reinforcement 1 | . 1 . . Assault . | . . . . Garrison . | . . . . Intercept . | . . . . Searches Triggered . | . . . . Construction Impeded . | . . . . Haulers Reinforced . | . . . . Active Scanning Responses . | . . . . Cargo Convoy Interrupts . | . . . . Stealth | -11 -10 -10 -10 --------- Run | Yrd Mat Min Exi Distress Signals . | . . . . Communications Jammed . | . . . . Distress Signals . | . . . . Times Spotted 37 | . 13 16 8 Peak Tracking Total 9 | . 4 4 9 Tactical Retreats 4 | . 1 3 . Traps | -11 -10 -10 -10 ------- Run | Yrd Mat Min Exi Traps Triggered 2 | . 2 . . Indirectly . | . . . . Trap Hack Attempts . | . . . . Triggered . | . . . . Disarmed . | . . . . Reprogrammed . | . . . . Reused . | . . . . Traps Extracted . | . . . . Installed . | . . . . Triggered . | . . . . Machines | -11 -10 -10 -10 ---------- Run | Yrd Mat Min Exi Machines Disabled 2 | . 1 1 . Max in Single Turn 1 | . 1 1 . Machines Repaired . | . . . . Machines Dismantled . | . . . . Machines Sabotaged . | . . . . Overloaded Fab Kills . | . . . . Hacking | -11 -10 -10 -10 --------- Run | Yrd Mat Min Exi Machines Accessed 4 | . 4 . . Terminals 3 | . 3 . . Fabricators . | . . . . Repair Stations . | . . . . Recycling Units 1 | . 1 . . Scanalyzers . | . . . . Garrison Access . | . . . . Total Hacks 11 | . 11 . . Successful 5 | . 5 . . Failed 6 | . 6 . . Catastrophic 2 | . 2 . . Database Lockouts . | . . . . Manual 10 | . 10 . . Terminals 9 | . 9 . . Fabricators . | . . . . Repair Stations . | . . . . Recycling Units 2 | . 2 . . Scanalyzers . | . . . . Garrison Access . | . . . . Terminal Hacks 1 | . 1 . . Branch Access Points 1 | . 1 . . Fabricator Hacks . | . . . . Repair Station Hacks . | . . . . Recycling Unit Hacks 2 | . 2 . . Report Inventory 1 | . 1 . . Retrieve Components 1 | . 1 . . Scanalyzer . | . . . . Garrison Access Hacks . | . . . . Unauthorized Hacks 2 | . 2 . . Terminals 2 | . 2 . . Botnet 2 | . 2 . . Fabricators . | . . . . Repair Stations . | . . . . Recycling Units . | . . . . Scanalyzers . | . . . . Garrison Access . | . . . . Data Cores Recovered . | . . . . Used . | . . . . Hacking Detections 3 | . 3 . . Full Trace Events 2 | . 2 . . Feedback Events . | . . . . Feedback Blocked . | . . . . Robot Schematics Acquired . | . . . . Robots Built . | . . . . Authchips . | . . . . Time . | . . . . Total Robot Build Rating . | . . . . Part Schematics Acquired . | . . . . Parts Built . | . . . . Authchips . | . . . . Time . | . . . . Total Part Build Rating . | . . . . Parts Repaired . | . . . . Time . | . . . . Parts Recycled . | . . . . Recycled Matter . | . . . . Retrieved Matter . | . . . . Retrieved Components 2 | . 2 . . Parts Scanalyzed . | . . . . Part Schematics Acquired . | . . . . Parts Damaged . | . . . . Bothacking | -11 -10 -10 -10 ------------ Run | Yrd Mat Min Exi Used RIF Installer . | . . . . Robots Hacked . | . . . . Non-combat . | . . . . Combat . | . . . . Robot Hacks Applied . | . . . . Relay Couplers Released . | . . . . Fabnet Peak Effective % . | . . . . Robots Rewired . | . . . . Allies Hacked . | . . . . Hacks Repelled . | . . . . Allies | -11 -10 -10 -10 -------- Run | Yrd Mat Min Exi Total Allies . | . . . . Largest Group . | . . . . Highest-Rated Group . | . . . . Highest-Rated Ally . | . . . . Total Orders . | . . . . Ally Attacks . | . . . . Total Damage . | . . . . Kills . | . . . . Allies Corrupted . | . . . . Allies Melted . | . . . . Intel | -11 -10 -10 -10 ------- Run | Yrd Mat Min Exi Robot Analysis Total . | . . . . Derelict Logs Recovered 1 | . . 1 . Drone Launches . | . . . . Drone Recoveries . | . . . . Exploration | -11 -10 -10 -10 ------------- Run | Yrd Mat Min Exi Turns Passed 1086 | . 432 557 97 Spaces Moved 413 | 1 188 181 43 Core . | . . . . Treads 339 | . 125 181 33 Legs 64 | 1 63 . . Wheels 10 | . . . 10 Hover . | . . . . Flight . | . . . . Fastest Speed 120 | 120 120 240 130 Average Speed 204 | 120 168 240 214 Slowest Speed 240 | 120 240 240 240 Overloaded Moves . | . . . . Propulsion Burnouts . | . . . . Robots Hopped . | . . . . Cave-ins Triggered . | . . . . Exploration Rate (%) 20 | 1 30 41 11 Regions Visited 3 Branch Regions 2 Pre-discovered Areas . | . . . . Known Exits Taken 1 | . 1 . . Unknown Exits Taken 2 | 1 . 1 . Scrap Searched . | . . . . Spaces Dug . | . . . . Terrain Destroyed 12 | . 5 7 . Melee . | . . . . Projectile . | . . . . AOE 12 | . 5 7 . Terrain Rammed . | . . . . Walls Destroyed . | . . . . Machines Disabled . | . . . . Actions | -11 -10 -10 -10 --------- Run | Yrd Mat Min Exi Total 534 | . 243 244 47 Wait 18 | . 1 17 . Move 410 | . 187 180 43 Hop . | . . . . Pick Up 7 | . 5 2 . Fast Attach 9 | . 8 1 . Attach 12 | . 2 8 2 Detach 7 | . 6 1 . Swap 3 | . . 1 2 Drop . | . . . . Fire 66 | . 33 33 . Melee . | . . . . Ram . | . . . . Kick . | . . . . Crush 2 | . 1 1 . Escape Stasis . | . . . . Rewire . | . . . . Trap . | . . . . Miscellaneous . | . . . . Route ------- -11/Scrapyard -10/Materials (discovered 2 exits: [*Mat] / *Min) -10/Mines (discovered 2 exits: [*Mat] / [*Exi]) -10/Exiles History --------- Turn | Location | Event 1 | -11/Scrapyard | Discovered new exit (range 0) 1 | -11/Scrapyard | Entered Materials 18 | -10/Materials | Identified exit to Mines 286 | -10/Materials | Discovered new exit (range 16) 302 | -10/Materials | Build established: Mutant 433 | -10/Materials | Entered Mines 454 | -10/Mines | Joined a pair of Derelicts in attacking an 0b10 outpost 508 | -10/Mines | Met a Derelict bent on vengeance 577 | -10/Mines | Assembled infested the area 588 | -10/Mines | Learned Materials garrison access intel 659 | -10/Mines | Lost 4 parts (1n1u2w) 754 | -10/Mines | Lost 4 parts (1p1n2w) 829 | -10/Mines | Core integrity fell below 50% 865 | -10/Mines | Discovered new exit (range 8) 981 | -10/Mines | Deemed a non-threat by the Exiles lab entrance 981 | -10/Mines | Discovered new exit (range 5) 990 | -10/Mines | Entered Exiles 1048 | -10/Exiles | Met 8R-AWN 1068 | -10/Exiles | Attacked by the Exiles 1086 | -10/Exiles | Core integrity fell below 20% 1087 | -10/Exiles | Destroyed by as-53791 with Assembled Rifle Last Messages --------------- Assault Rifle destroyed. HV Slug penetrates Wall. Penetrated by HV Slug. Critical hit (Destroy). Lgt. Treads destroyed. HV Slug penetrates Wall. HV Slug penetrates Machine. Penetrated by HV Slug. HV Slug penetrates Wall. Penetrated by HV Slug. HV Slug penetrates Wall. Com. Wheel destroyed. Lgt. Ion Engine destroyed. Rigged Rnf. Deuterium Engine explodes. Machine disabled. as-93624 destroyed. Penetrated by HV Slug. HV Slug penetrates Wall. Penetrated by HV Slug. HV Slug penetrates Wall. Map ----- +----------------------------------------------------+ | ?????????????????????????????????????????????????? | | ?????????????????????????????????????????????????? | | ?????????????????????????????????????????????????? | | ?????????????????????????????????????????????????? | | ?????????????????????????????????????????????????? | | ?????????????????????????????????????????????????? | | ?????????????????????????????????????????????????? | | ?????????????????????????????????????????????????? | | ?????????????????????????????????????????????????? | | ?????????????????????????????????????????????????? | | ?????????????????????????????????????????????????? | | ?????????????????????????????????????????????????? | | ???????????????????????????????????? ???????????? | | ???????????????????????????????????? ??????????? | | ???????????????????????????????????? ?????????? | | ???????????????????????????????????# #?????????? | | ?????????????????????????????????## ##????????? | | ?????????????????????????????????# #????????? | | ?????????????#####???????????????# #????????? | | ????????????##" #??????????????## ?????????? | | ????????????#" #?????????????## #??????????? | | ???????????##" ##????????????# #??????????? | | ?????????### ##########?### #???????????? | | ?????????# ##;;;;;### #???????????? | | ????????## # ;# #????????????? | | ????????# a aa @ * ##???????????? | | ??? #; g aa% #???????????? | | ? ##;# a ##??????????? | | ? ""?#;"""""#### ###????????? | | ?? #"""??########??#### * ###??????? | | ?? ?###????????????????##### ##?????? | | ?? ??????????????????????????### #?????? | | ??? ?????????????????????????????### #?????? | | ???????????????????????????????????### #?????? | | ????????????????????????????????????#" ##????? | | ????????????????????????????????????#### ###??? | | ???????????????????????????????????????# ##?? | | ???????????????????????????????????????## ### | | ????????????????????????????????????????### # | | ??????????????????????????????????????????# ## | | ??????????????????????????????????????????## ##? | | ???????????????????????????????????????????#####?? | | ?????????????????????????????????????????????????? | | ?????????????????????????????????????????????????? | | ?????????????????????????????????????????????????? | | ?????????????????????????????????????????????????? | | ?????????????????????????????????????????????????? | | ?????????????????????????????????????????????????? | | ?????????????????????????????????????????????????? | | ?????????????????????????????????????????????????? | +----------------------------------------------------+ Best States ------------- Heat Dissipation 25 Energy Generation 10 Energy Capacity 125 Matter Stores 300 Matter Capacity 300 Sight Range 16 Terrain Scan Density 10 Evasion (%) 55 Recoil Reduction 2 Item Schematics ----------------- None Robot Schematics ------------------ None Fabricated ------------ Nothing Alien Tech Used ----------------- None Achievements -------------- None Challenges ------------ None Game ------ Seed ClaymoresBombardmentEngine Manual? 0 Play Time 00:12:31 Cumulative 84.2 hours Start 2024.04.24 @ 22:49:47 End 2024.04.24 @ 23:01:57 Sessions 1 Manual Loads 0 Difficulty Rogue Special Mode None Game No. 172 Rogue 170 Adventurer 2 Explorer 0 Win Type - Total 3 Types 2/0/0/1/0/0/0/0/0 Lore% 49 Gallery% 51 Achievement% 39 Wizard Run 0 Options --------- Layout 0 ASCII 0 Keyboard 1 Movement Numpad Keybinds 1 Fullscreen 2 Font 18/SmallcapsGlow Map View 76x50 Zoom Use 0% Tactical HUD 1 Map Filters NONE Filters NONE Steam 1 RUN: 0d9e16d1-646a-405c-a9c5-4a5b90098831